lending/lending_fUSD_20241115
["ID","MTS","AMOUNT","RATE_DAILY","PERIOD"]
[342243922,1731640084626,-799.27,0.00030136,120]
[342243923,1731640084650,-799.27,0.00030136,120]
[342243924,1731640084675,-799.27,0.00030136,120]
[342243925,1731640084699,-799.27,0.00030136,120]
[342243926,1731640084723,-799.27,0.00030136,120]
[342243927,1731640084746,-799.27,0.00030136,120]
[342243928,1731640084774,-799.27,0.00030136,120]
[342243929,1731640084798,-799.27,0.00030136,120]
[342243930,1731640084822,-799.27,0.00030136,120]
[342243931,1731640084847,-799.27,0.00030136,120]
[342243932,1731640084871,-799.27,0.00030136,120]
[342243933,1731640084895,-799.27,0.00030136,120]
[342243934,1731640084919,-799.27,0.00030136,120]
[342243935,1731640084946,-799.27,0.00030136,120]
[342243936,1731640084974,-799.27,0.00030136,120]
[342243937,1731640085001,-799.27,0.00030136,120]
[342243938,1731640085028,-799.27,0.00030136,120]
[342243939,1731640085055,-799.27,0.00030136,120]
[342243940,1731640085079,-799.27,0.00030136,120]
[342243941,1731640085103,-799.27,0.00030136,120]
[342243942,1731640085127,-799.27,0.00030136,120]
[342243943,1731640085150,-799.27,0.00030136,120]
[342243944,1731640085172,-799.27200341,0.00030136,120]
[342243945,1731640085195,-617.36,0.00030136,120]
[342243946,1731640085218,-617.36,0.00030136,120]
[342243947,1731640085242,-617.36,0.00030136,120]
[342243948,1731640085267,-617.36,0.00030136,120]
[342243949,1731640085292,-617.36,0.00030136,120]
[342243950,1731640085316,-617.36,0.00030136,120]
[342243951,1731640085340,-617.36,0.00030136,120]
[342243952,1731640085364,-617.36,0.00030136,120]
[342243953,1731640085388,-617.36,0.00030136,120]
[342243954,1731640085412,-617.36,0.00030136,120]
[342243955,1731640085436,-617.36,0.00030136,120]
[342243956,1731640085459,-617.36,0.00030136,120]
[342243957,1731640085482,-617.36,0.00030136,120]
[342243958,1731640085508,-617.36,0.00030136,120]
[342243959,1731640085534,-617.36,0.00030136,120]
[342243960,1731640085557,-617.36,0.00030136,120]
[342243961,1731640085580,-617.36,0.00030136,120]
[342243962,1731640085603,-617.36,0.00030136,120]
[342243963,1731640085625,-617.36,0.00030136,120]
[342243964,1731640085648,-617.36,0.00030136,120]
[342243965,1731640085671,-617.36,0.00030136,120]
[342243966,1731640085693,-617.36,0.00030136,120]
[342243967,1731640085716,-617.36,0.00030136,120]
[342243968,1731640085739,-617.46001622,0.00030136,120]
[342243969,1731640085764,-500.0,0.00030136,120]
[342243970,1731640085787,-500.0,0.00030136,120]
[342243971,1731640085810,-500.0,0.00030136,120]
[342243972,1731640085833,-500.0,0.00030136,120]
[342243973,1731640085856,-500.0,0.00030136,120]
[342243974,1731640085878,-500.0,0.00030136,120]
[342243975,1731640085902,-500.0,0.00030136,120]
[342243976,1731640085925,-500.0,0.00030136,120]
[342243977,1731640085950,-500.0,0.00030136,120]
[342243978,1731640085973,-500.0,0.00030136,120]
[342243979,1731640085996,-557.0039248,0.00030136,120]
[342243980,1731640086027,-500.0,0.00030136,120]
[342243981,1731640086052,-500.0,0.00030136,120]
[342243982,1731640086075,-500.0,0.00030136,120]
[342243983,1731640086098,-500.0,0.00030136,120]
[342243984,1731640086121,-500.0,0.00030136,120]
[342243985,1731640086146,-500.0,0.00030136,120]
[342243986,1731640086169,-500.0,0.00030136,120]
[342243987,1731640086192,-500.0,0.00030136,120]
[342243988,1731640086216,-500.0,0.00030136,120]
[342243989,1731640086240,-500.0,0.00030136,120]
[342243990,1731640086265,-500.0,0.00030136,120]
[342243991,1731640086288,-500.0,0.00030136,120]
[342243992,1731640086313,-500.0,0.00030136,120]
[342243993,1731640086338,-500.0,0.00030136,120]
[342243994,1731640086361,-500.0,0.00030136,120]
[342243995,1731640086384,-500.0,0.00030136,120]
[342243996,1731640086408,-500.0,0.00030136,120]
[342243997,1731640086431,-515.92206674,0.00030136,120]
[342243998,1731640086455,-586.98,0.00030136,120]
[342243999,1731640086478,-586.98,0.00030136,120]
[342244000,1731640086502,-586.98,0.00030136,120]
[342244001,1731640086528,-586.98,0.00030136,120]
[342244002,1731640086551,-586.98,0.00030136,120]
[342244003,1731640086576,-586.98,0.00030136,120]
[342244004,1731640086884,-586.98,0.00030136,120]
[342244005,1731640086909,-586.98,0.00030136,120]
[342244006,1731640086933,-586.98,0.00030136,120]
[342244007,1731640086971,-586.98,0.00030136,120]
[342244008,1731640086998,-586.98,0.00030136,120]
[342244009,1731640087027,-586.98,0.00030136,120]
[342244010,1731640087054,-586.98,0.00030136,120]
[342244011,1731640087079,-586.98,0.00030136,120]
[342244012,1731640087104,-586.98,0.00030136,120]
[342244013,1731640087130,-586.98,0.00030136,120]
[342244014,1731640087155,-586.98,0.00030136,120]
[342244015,1731640087180,-586.98,0.00030136,120]
[342244016,1731640087207,-586.98,0.00030136,120]
[342244017,1731640087235,-586.98,0.00030136,120]
[342244018,1731640087259,-586.98,0.00030136,120]
[342244019,1731640087286,-586.98,0.00030136,120]
[342244020,1731640087311,-586.98,0.00030136,120]
[342244021,1731640087337,-586.99402392,0.00030136,120]
[342244022,1731640087363,-500.0,0.00030136,120]
[342244023,1731640087387,-500.0,0.00030136,120]
[342244024,1731640087410,-500.0,0.00030136,120]
[342244025,1731640087436,-517.12337535,0.00030136,120]
[342244026,1731640087469,-200.0,0.00030137,60]
[342244027,1731640087494,-152.0,0.00030235,34]
[342244028,1731640087523,-500.0,0.00030249,120]
[342244029,1731640087555,-166.962,0.0003045,120]
[342244030,1731640087582,-152.0,0.000306,35]
[342244031,1731640087608,-548.0,0.00030613,30]
[342244032,1731640087634,-2000.0,0.0003062,120]
[342244033,1731640087660,-200.0,0.00030819,120]
[342244034,1731640087686,-500.0,0.00030999,120]
[342244035,1731640087714,-200.0,0.00031,120]
[342244036,1731640087740,-1800.0,0.00031,32]
[342244037,1731640087770,-2000.0,0.00031159,120]
[342244038,1731640087794,-157.77049846,0.000314,30]
[342244039,1731640087821,-222.22222,0.000315,120]
[342244040,1731640087847,-150.0,0.000315,120]
[342244041,1731640087874,-200.0,0.0003162,120]
[342244042,1731640087899,-2000.0,0.00031698,120]
[342244043,1731640087924,-500.0,0.00031749,120]
[342244044,1731640087953,-151.0,0.00031863,120]
[342244045,1731640087977,-507.24362888,0.00032,30]
[342244046,1731640088004,-500.0,0.00032,30]
[342244047,1731640088035,-500.0,0.00032,30]
[342244048,1731640088060,-500.0,0.00032,30]
[342244049,1731640088088,-500.0,0.00032,30]
[342244050,1731640088136,-500.0,0.00032,30]
[342244051,1731640088186,-500.0,0.00032,30]
[342244052,1731640088213,-500.0,0.00032,30]
[342244053,1731640088239,-500.0,0.00032,30]
[342244054,1731640088268,-520.26801052,0.00032,30]
[342244055,1731640088294,-500.0,0.00032,30]
[342244056,1731640088320,-500.0,0.00032,30]
[342244057,1731640088346,-207.695559,0.00032,30]
[342244058,1731640088372,-500.0,0.00032,30]
[342244059,1731640088397,-500.0,0.00032,30]
[342244060,1731640088422,-500.0,0.00032,30]
[342244061,1731640088447,-500.0,0.00032,30]
[342244062,1731640088472,-500.0,0.00032,30]
[342244063,1731640088498,-500.0,0.00032,30]
[342244064,1731640088524,-500.0,0.00032,30]
[342244065,1731640088548,-500.0,0.00032,30]
[342244066,1731640088572,-666.74078464,0.00032,30]
[342244067,1731640088598,-500.0,0.00032,30]
[342244068,1731640088622,-500.0,0.00032,30]
[342244069,1731640088648,-500.0,0.00032,30]
[342244070,1731640088673,-500.0,0.00032,30]
[342244071,1731640088698,-500.0,0.00032,30]
[342244072,1731640088723,-500.0,0.00032,30]
[342244073,1731640088750,-500.0,0.00032,30]
[342244074,1731640088778,-636.3854892,0.00032,30]
[342244075,1731640088803,-340.91096476,0.00032,30]
[342244076,1731640088829,-2200.0,0.00032,30]
[342244077,1731640088853,-500.0,0.00032,30]
[342244078,1731640088878,-500.0,0.00032,30]
[342244079,1731640088903,-2200.0,0.00032,30]
[342244080,1731640088928,-2200.0,0.00032,30]
[342244081,1731640088954,-2200.0,0.00032,30]
[342244082,1731640088979,-2200.0,0.00032,30]
[342244083,1731640089007,-2200.0,0.00032,30]
[342244084,1731640089040,-2200.0,0.00032,30]
[342244085,1731640089066,-2200.0,0.00032,30]
[342244086,1731640089092,-2200.0,0.00032,30]
[342244087,1731640089118,-2200.0,0.00032,30]
[342244088,1731640089142,-500.0,0.00032,30]
[342244089,1731640089167,-2200.0,0.00032,30]
[342244090,1731640089191,-2200.0,0.00032,30]
[342244091,1731640089215,-158.36402935,0.00032,30]
[342244092,1731640089243,-500.0,0.00032,30]
[342244093,1731640089272,-2200.0,0.00032,30]
[342244094,1731640089296,-524.75846862,0.00032,30]
[342244095,1731640089321,-2200.0,0.00032,30]
[342244096,1731640089346,-500.0,0.00032,30]
[342244097,1731640089372,-2200.0,0.00032,30]
[342244098,1731640089397,-500.0,0.00032,30]
[342244099,1731640089423,-500.0,0.00032,30]
[342244100,1731640089447,-500.0,0.00032,30]
[342244101,1731640089471,-500.0,0.00032,30]
[342244102,1731640089495,-499.6210193,0.00032,30]
[342244103,1731640089521,-935.40933725,0.00032,30]
[342244104,1731640089552,-500.0,0.00032,30]
[342244105,1731640089581,-700.0,0.00032,30]
[342244106,1731640089606,-500.0,0.00032,30]
[342244107,1731640090080,-515.18110519,0.00032,30]
[342244108,1731640090108,-500.0,0.00032,30]
[342244109,1731640090136,-700.0,0.00032,30]
[342244110,1731640090163,-197.58518307,0.00032,30]
[342244111,1731640090188,-700.0,0.00032,30]
[342244112,1731640090213,-700.0,0.00032,30]
[342244113,1731640090237,-700.0,0.00032,30]
[342244114,1731640090262,-700.0,0.00032,30]
[342244115,1731640090294,-521.93298621,0.00032,30]
[342244116,1731640090318,-700.0,0.00032,30]
[342244117,1731640090342,-700.0,0.00032,30]
[342244118,1731640090366,-500.0,0.00032,30]
[342244119,1731640090390,-700.0,0.00032,30]
[342244120,1731640090414,-500.0,0.00032,30]
[342244121,1731640090441,-700.0,0.00032,30]
[342244122,1731640090464,-500.0,0.00032,30]
[342244123,1731640090486,-500.0,0.00032,30]
[342244124,1731640090522,-500.0,0.00032,30]
[342244125,1731640090547,-700.0,0.00032,30]
[342244126,1731640090572,-700.0,0.00032,30]
[342244127,1731640090596,-500.0,0.00032,30]
[342244128,1731640090620,-500.0,0.00032,30]
[342244129,1731640090645,-700.0,0.00032,30]
[342244130,1731640090670,-700.0,0.00032,30]
[342244131,1731640090696,-500.0,0.00032,30]
[342244132,1731640090723,-700.0,0.00032,30]
[342244133,1731640090750,-500.0,0.00032,30]
[342244134,1731640090782,-500.0,0.00032,30]
[342244135,1731640090807,-500.0,0.00032,30]
[342244136,1731640090830,-500.0,0.00032,30]
[342244137,1731640090854,-500.0,0.00032,30]
[342244138,1731640090879,-500.0,0.00032,30]
[342244139,1731640090903,-500.0,0.00032,30]
[342244140,1731640090927,-500.0,0.00032,30]
[342244141,1731640090952,-500.0,0.00032,30]
[342244142,1731640090977,-500.0,0.00032,30]
[342244143,1731640091001,-500.0,0.00032,30]
[342244144,1731640091029,-500.0,0.00032,30]
[342244145,1731640091054,-500.0,0.00032,30]
[342244146,1731640091078,-500.0,0.00032,30]
[342244147,1731640091103,-500.0,0.00032,120]
[342244148,1731640091128,-2739.23133258,0.00032,120]
[342244149,1731640091153,-1800.0,0.00032,33]
[342244150,1731640091177,-54176.61888293,0.00032,30]
[342244151,1731640091201,-150.0,0.000321,120]
[342244152,1731640091224,-150.0,0.000321,120]
[342244153,1731640091249,-150.0,0.000321,120]
[342244154,1731640091278,-150.0,0.000321,120]
[342244155,1731640091302,-1507.52,0.00032162,30]
[342244156,1731640091327,-2000.0,0.00032237,120]
[342244157,1731640091351,-150.0,0.00032336,120]
[342244158,1731640091376,-150.0,0.0003237,120]
[342244159,1731640091400,-150.0,0.00032419,120]
[342244160,1731640091425,-200.0,0.00032422,120]
[342244161,1731640091448,-500.0,0.00032499,120]
[342244162,1731640091472,-150.0,0.00032571,120]
[342244163,1731640091496,-7621.49,0.000326,30]
[342244164,1731640091523,-150.0,0.0003262,120]
[342244165,1731640091547,-150.0,0.00032653,120]
[342244166,1731640091571,-2000.0,0.00032775,120]
[342244167,1731640091597,-150.0,0.000328,120]
[342244168,1731640091622,-150.0,0.00032817,120]
[342244169,1731640091648,-150.0,0.00032844,120]
[342244170,1731640091673,-150.0,0.00032856,120]
[342244171,1731640091700,-150.0,0.00032864,120]
[342244172,1731640091731,-200.0,0.00032877,60]
[342244173,1731640091757,-200.0,0.00033,120]
[342244174,1731640091787,-1102.74005123,0.00033,30]
[342244175,1731640091813,-191.31148376,0.00033,120]
[342244176,1731640091839,-175.0,0.00033,120]
[342244177,1731640091864,-1800.0,0.00033,34]
[342244178,1731640091889,-1293.09183589,0.00033,30]
[342244179,1731640091914,-150.0,0.00033,30]
[342244180,1731640091939,-150.0,0.00033,30]
[342244181,1731640091966,-165.219094,0.00033,30]
[342244182,1731640091992,-150.0,0.00033053,120]
[342244183,1731640092021,-500.0,0.00033054,60]
[342244184,1731640092048,-4000.0,0.00033054,60]
[342244185,1731640092073,-1900.0,0.00033054,60]
[342244186,1731640092099,-2800.0,0.00033054,60]
[342244187,1731640092125,-166.923,0.000331,120]
[342244188,1731640092153,-5223.32,0.00033151,120]
[342244189,1731640092179,-200.0,0.00033224,120]
[342244190,1731640092204,-500.0,0.00033249,120]
[342244191,1731640092231,-150.0,0.00033283,120]
[342244192,1731640092257,-2000.0,0.00033314,120]
[342244193,1731640092289,-150.0,0.00033345,120]
[342244194,1731640092313,-150.0,0.000334,120]
[342244195,1731640092338,-294.44444,0.000334,120]
[342244196,1731640092363,-150.0,0.000334,120]
[342244197,1731640092388,-300000.0,0.000334,120]
[342244198,1731640092414,-1727.92,0.000335,31]
[342244199,1731640092441,-1727.92,0.000335,31]
[342244200,1731640092468,-1727.92,0.000335,31]
[342244201,1731640092496,-1727.92,0.000335,31]
[342244202,1731640092526,-1727.92,0.000335,31]
[342244203,1731640092553,-1727.92,0.000335,31]
[342244204,1731640092579,-1727.92,0.000335,31]
[342244205,1731640092605,-1727.92,0.000335,31]
[342244206,1731640092632,-1727.92,0.000335,31]
[342244207,1731640092658,-1727.92,0.000335,31]
[342244208,1731640092684,-1727.92,0.000335,31]
[342244209,1731640092709,-1727.92,0.000335,31]
[342244210,1731640093035,-150.0,0.00033538,120]
[342244211,1731640093063,-150.0,0.00033567,120]
[342244212,1731640093088,-500.0,0.00033602,60]
[342244213,1731640093113,-4000.0,0.00033602,60]
[342244214,1731640093138,-1900.0,0.00033602,60]
[342244215,1731640093161,-2800.0,0.00033602,60]
[342244216,1731640093186,-150.0,0.0003361,120]
[342244217,1731640093210,-768.0,0.00033674,30]
[342244218,1731640093234,-151.0,0.00033726,120]
[342244219,1731640093260,-150.0,0.00033771,120]
[342244220,1731640093288,-150.0,0.00033783,120]
[342244221,1731640093313,-2000.0,0.00033853,120]
[342244222,1731640096647,-2877.91730082,0.00033898,36]
[342244223,1731640096673,-500.0,0.00033999,120]
[342244224,1731640096699,-500.0,0.00034,120]
[342244225,1731640096724,-1600.0,0.00034,120]
[342244226,1731640096748,-4011.23086674,0.00034,120]
[342244227,1731640096774,-1800.0,0.00034,35]
[342244228,1731640096797,-1385.27931943,0.00034,120]
[342244229,1731640096821,-1013.0,0.00034,120]
[342244230,1731640096845,-2012.76626929,0.00034,90]
[342244231,1731640096868,-17914.80437659,0.00034,30]
[342244232,1731640096890,-385.426052,0.00034,30]
[342244233,1731640096915,-150.0,0.00034005,120]
[342244234,1731640096940,-177.325,0.00034019,120]
[342244235,1731640096966,-177.326,0.00034019,120]
[342244236,1731640096990,-177.326,0.00034019,120]
[342244237,1731640097013,-200.0,0.00034026,120]
[342244238,1731640097042,-1727.92,0.000341,31]
[342244239,1731640097068,-1727.92,0.000341,31]
[342244240,1731640097094,-1727.92,0.000341,31]
[342244241,1731640097120,-1727.92,0.000341,31]
[342244242,1731640097145,-1727.92,0.000341,31]
[342244243,1731640097170,-1727.92,0.000341,31]
[342244244,1731640097195,-1727.92,0.000341,31]
[342244245,1731640097221,-1727.92,0.000341,31]
[342244246,1731640097246,-1727.92,0.000341,31]
[342244247,1731640097273,-1727.92,0.000341,31]
[342244248,1731640097298,-1727.92,0.000341,31]
[342244249,1731640097324,-1727.92,0.000341,31]
[342244250,1731640097349,-1727.92,0.000341,31]
[342244251,1731640097374,-1727.92,0.000341,31]
[342244252,1731640097399,-1727.92,0.000341,31]
[342244253,1731640097424,-1727.92,0.000341,31]
[342244254,1731640097449,-1727.92,0.000341,31]
[342244255,1731640097474,-1727.92,0.000341,31]
[342244256,1731640097500,-1727.92,0.000341,31]
[342244257,1731640097528,-1727.92,0.000341,31]
[342244258,1731640097553,-1727.92,0.000341,31]
[342244259,1731640097579,-1727.92,0.000341,31]
[342244260,1731640097604,-1727.92,0.000341,31]
[342244261,1731640097629,-1727.92,0.000341,31]
[342244262,1731640097652,-1194.49846882,0.00034102,30]
[342244263,1731640097676,-200.0,0.00034104,30]
[342244264,1731640097699,-293.46999993,0.00034105,30]
[342244265,1731640097723,-10264.16604085,0.0003411,30]
[342244266,1731640098122,-293.46999993,0.00034111,30]
[342244267,1731640098147,-2496.34373804,0.00034114,30]
[342244268,1731640098173,-293.46999993,0.00034117,30]
[342244269,1731640098198,-1194.49846882,0.00034119,30]
[342244270,1731640098223,-54221.03008937,0.0003412,30]
[342244271,1731640098247,-2496.34373804,0.00034122,30]
[342244272,1731640098272,-2496.34373804,0.00034126,30]
[342244273,1731640098297,-54221.03008937,0.0003413,30]
[342244274,1731640098321,-10264.16604085,0.00034131,30]
[342244275,1731640098346,-200.0,0.00034133,30]
[342244276,1731640098374,-1952.26280821,0.00034135,30]
[342244277,1731640098399,-54221.03008937,0.00034136,30]
[342244278,1731640098424,-54221.03008937,0.00034137,30]
[342244279,1731640098448,-1194.49846882,0.00034147,30]
[342244280,1731640098473,-10264.16604085,0.00034148,30]
[342244281,1731640098497,-293.46999993,0.00034149,30]
[342244282,1731640098523,-500.0,0.0003415,60]
[342244283,1731640098547,-4000.0,0.0003415,60]
[342244284,1731640098571,-1900.0,0.0003415,60]
[342244285,1731640098595,-2800.0,0.0003415,60]
[342244286,1731640098619,-10264.16604085,0.00034151,30]
[342244287,1731640098642,-293.46999993,0.00034156,30]
[342244288,1731640098666,-293.46999993,0.00034157,30]
[342244289,1731640098688,-2496.34373804,0.00034157,30]
[342244290,1731640098712,-1952.26280821,0.00034158,30]
[342244291,1731640098737,-54221.03008937,0.0003416,30]
[342244292,1731640098761,-54221.03008937,0.00034161,30]
[342244293,1731640098785,-1952.26280821,0.00034162,30]
[342244294,1731640098809,-1952.26280821,0.00034162,30]
[342244295,1731640098832,-1194.49846882,0.00034163,30]
[342244296,1731640098855,-1194.49846882,0.00034164,30]
[342244297,1731640098879,-1952.26280821,0.00034168,30]
[342244298,1731640098902,-2496.34373804,0.00034171,30]
[342244299,1731640098926,-10264.16604085,0.00034177,30]
[342244300,1731640098952,-200.0,0.00034178,30]
[342244301,1731640098983,-1952.26280821,0.00034179,30]
[342244302,1731640099010,-10264.16604085,0.00034182,30]
[342244303,1731640099043,-150.0,0.00034182,120]
[342244304,1731640099067,-1194.49846882,0.00034182,30]
[342244305,1731640099093,-2496.34373804,0.00034193,30]
[342244306,1731640099117,-150.111509,0.00034198,60]
[342244307,1731640099143,-1004.89404304,0.000342,30]
[342244308,1731640099168,-150.0,0.00034215,120]
[342244309,1731640099193,-580.47,0.00034246,60]
[342244310,1731640099218,-2000.0,0.00034392,120]
[342244311,1731640099244,-150.0,0.00034394,120]
[342244312,1731640099273,-500000.0,0.000344,120]
[342244313,1731640099298,-205.24073481,0.0003443,120]
[342244314,1731640099322,-150.111509,0.00034498,60]
[342244315,1731640099347,-100000.0,0.000345,30]
[342244316,1731640099371,-900.0,0.0003452,120]
[342244317,1731640099395,-900.0,0.0003452,120]
[342244318,1731640099419,-900.0,0.0003452,120]
[342244319,1731640099442,-900.0,0.0003452,120]
[342244320,1731640099465,-900.0,0.0003452,120]
[342244321,1731640099488,-900.0,0.0003452,120]
[342244322,1731640099512,-900.0,0.0003452,120]
[342244323,1731640099538,-900.0,0.0003452,120]
[342244324,1731640099564,-900.0,0.0003452,120]
[342244325,1731640099589,-900.0,0.0003452,120]
[342244326,1731640099615,-1032.57035246,0.0003452,120]
[342244327,1731640099640,-580.47,0.0003452,60]
[342244328,1731640099665,-2000.0,0.00034521,30]
[342244329,1731640099691,-1727.92,0.000346,31]
[342244330,1731640099716,-1727.92,0.000346,31]
[342244331,1731640099742,-1727.92,0.000346,31]
[342244332,1731640099768,-1727.92,0.000346,31]
[342244333,1731640099793,-1727.92,0.000346,31]
[342244334,1731640099819,-1727.92,0.000346,31]
[342244335,1731640099844,-1727.92,0.000346,31]
[342244336,1731640099869,-1727.92,0.000346,31]
[342244337,1731640099894,-1727.92,0.000346,31]
[342244338,1731640099920,-1727.92,0.000346,31]
[342244339,1731640099949,-1727.92,0.000346,31]
[342244340,1731640099982,-1727.92,0.000346,31]
[342244341,1731640100012,-1727.92,0.000346,31]
[342244342,1731640100045,-1727.92,0.000346,31]
[342244343,1731640100072,-1727.92,0.000346,31]
[342244344,1731640100099,-1727.92,0.000346,31]
[342244345,1731640100125,-1727.92,0.000346,31]
[342244346,1731640100152,-1727.92,0.000346,31]
[342244347,1731640100178,-1727.92,0.000346,31]
[342244348,1731640100205,-1727.92,0.000346,31]
[342244349,1731640100231,-1727.92,0.000346,31]
[342244350,1731640100258,-1727.92,0.000346,31]
[342244351,1731640100289,-1727.92,0.000346,31]
[342244352,1731640100315,-1727.92,0.000346,31]
[342244353,1731640100342,-150.0,0.00034634,120]
[342244354,1731640100367,-150.0,0.000347,120]
[342244355,1731640100392,-150.0,0.000347,120]
[342244356,1731640100419,-150.0,0.00034736,120]
[342244357,1731640100445,-1507.52,0.00034746,120]
[342244358,1731640100470,-500.0,0.00034749,120]
[342244359,1731640100496,-150.0,0.00034752,120]
[342244360,1731640100524,-580.47,0.00034794,60]
[342244361,1731640100551,-2000.0,0.00034795,30]
[342244362,1731640100578,-150.111509,0.00034798,60]
[342244363,1731640100605,-200.0,0.00034828,120]
[342244364,1731640100847,-150.0,0.00034845,120]
[342244365,1731640100911,-150.0,0.00034846,120]
[342244366,1731640100938,-250.0,0.00034904,120]
[342244367,1731640100966,-150.0,0.00034916,120]
[342244368,1731640100992,-2000.0,0.00034931,120]
[342244369,1731640101023,-1946.0961563,0.0003498,30]
[342244370,1731640101058,-564.193,0.0003498,40]
[342244371,1731640101090,-50000.0,0.00035,35]
[342244372,1731640101120,-1800.0,0.00035,36]
[342244373,1731640101146,-700.0,0.00035,120]
[342244374,1731640101172,-1105.15245801,0.00035,30]
[342244375,1731640101196,-200.0,0.00035,30]
[342244376,1731640101224,-1001.0,0.00035,120]
[342244377,1731640101250,-727.0,0.00035,120]
[342244378,1731640101277,-7983.99042929,0.00035,120]
[342244379,1731640101305,-1872.02810475,0.00035,31]
[342244380,1731640101332,-1000.76687741,0.00035,60]
[342244381,1731640101358,-8066.0,0.00035,94]
[342244382,1731640101383,-371.46919916,0.00035,120]
[342244383,1731640101408,-1280.0,0.00035,120]
[342244384,1731640101433,-150.0,0.00035,45]
[342244385,1731640101459,-500.0,0.00035,120]
[342244386,1731640101483,-90000.0,0.00035,60]
[342244387,1731640101507,-1063.50935826,0.00035,32]
[342244388,1731640101536,-20000.0,0.00035,30]
[342244389,1731640101561,-2031.97175606,0.00035,120]
[342244390,1731640101585,-5659.65628808,0.00035004,30]
[342244391,1731640101612,-150.0,0.00035017,120]
[342244392,1731640101639,-150.0,0.00035062,120]
[342244393,1731640101666,-2000.0,0.00035068,30]
[342244394,1731640101694,-580.47,0.00035068,60]
[342244395,1731640101721,-158.157952,0.000351,30]
[342244396,1731640101749,-150.0,0.00035197,120]
[342244397,1731640101786,-150.111507,0.00035198,120]
[342244398,1731640101823,-1727.92,0.000352,31]
[342244399,1731640101851,-1727.92,0.000352,31]
[342244400,1731640101878,-1727.92,0.000352,31]
[342244401,1731640101904,-1727.92,0.000352,31]
[342244402,1731640101931,-1727.92,0.000352,31]
[342244403,1731640101960,-1727.92,0.000352,31]
[342244404,1731640101986,-1727.92,0.000352,31]
[342244405,1731640102015,-1727.92,0.000352,31]
[342244406,1731640102045,-1727.92,0.000352,31]
[342244407,1731640102072,-1727.92,0.000352,31]
[342244408,1731640102098,-1727.92,0.000352,31]
[342244409,1731640102125,-1727.92,0.000352,31]
[342244410,1731640102150,-1727.92,0.000352,31]
[342244411,1731640102176,-1727.92,0.000352,31]
[342244412,1731640102202,-1727.92,0.000352,31]
[342244413,1731640102228,-1727.92,0.000352,31]
[342244414,1731640102253,-1727.92,0.000352,31]
[342244415,1731640102284,-1727.92,0.000352,31]
[342244416,1731640102310,-1727.92,0.000352,31]
[342244417,1731640102337,-1727.92,0.000352,31]
[342244418,1731640102364,-1727.92,0.000352,31]
[342244419,1731640102392,-1727.92,0.000352,31]
[342244420,1731640102420,-1727.92,0.000352,31]
[342244421,1731640102447,-1727.92,0.000352,31]